Cogmind - Beta 15 @@@ ROGUE MODE // 2025.05.26 @ 12:48:55 Player: winnking222 Result: Destroyed by OT-JDX(R) with Subdweller Laser Performance ------------- Evolutions (0) 0 Regions Visited (3) 600 Robots Destroyed (18) 90 Value Destroyed (517) 517 Prototype IDs (1) 20 Alien Tech Used (0) 0 Bonus (0) 0 TOTAL SCORE: 1227 Bonus ------- None Cogmind --------- Core Integrity 0/250 Matter 278/300 Energy 258/280 System Corruption 0% Temperature Hot (205) Movement Treading (320) Ox2 Location -10/Subcaves Parts ------- > --- POWER (1) -------- Heavy Ion Engine > --- PROPULSION (2) --- Light Treads > --- UTILITY (2) ------ Large Storage Unit Medium Armor Plating > --- WEAPON (2) ------- Subdweller Laser Subdweller Laser > --- INVENTORY (15) --- Heavy Ion Engine Heavy Ion Engine Light Treads Compact Wheel Small Storage Unit Compact Matter Pod (150) Subdweller Optics Seismic Detector Medium Armor Plating Rainbow Chip Shotgun Shotgun Subdweller Machine Gun Mining Laser Peak State ------------ > --- POWER ------------ Heavy Ion Engine > --- PROPULSION ------- Light Treads Spiked Treads > --- UTILITY ---------- Large Storage Unit Medium Armor Plating > --- WEAPON ----------- Shotgun Shotgun > --- INVENTORY -------- Heavy Ion Engine Heavy Ion Engine Light Treads Compact Wheel Small Storage Unit Compact Matter Pod Seismic Detector Medium Armor Plating Rainbow Chip Shotgun Shotgun Subdweller Machine Gun Mining Laser [Rating: 16] Favorites ----------- Power Ion Engine Engine Ion Engine Propulsion Light Treads Treads Light Treads Leg Aluminum Leg Utility Large Storage Unit Device Heat Sink Storage Large Storage Unit Protection Medium Armor Plating Weapon Medium Laser Energy Gun Medium Laser Ballistic Gun Assault Rifle Build | -11 -10 -10 -10 ------- Run | Yrd Mat Min Sub Slots Evolved . | . . . . Power . | . . . . Propulsion . | . . . . Utility . | . . . . Weapon . | . . . . Parts Attached 23 | 6 9 3 5 Power 4 | 1 1 1 1 Engine 4 | 1 1 1 1 Core . | . . . . Reactor . | . . . . Propulsion 5 | 2 2 . 1 Treads 3 | . 2 . 1 Leg 2 | 2 . . . Wheel . | . . . . Hover . | . . . . Flight . | . . . . Utility 7 | 1 5 . 1 Device 1 | . 1 . . Storage 2 | 1 1 . . Processor . | . . . . Hackware . | . . . . Protection 4 | . 3 . 1 Artifact . | . . . . Weapon 7 | 2 1 2 2 Energy Gun 3 | 1 . . 2 Energy Cannon . | . . . . Ballistic Gun 4 | 1 1 2 . Ballistic Cannon . | . . . . Launcher . | . . . . Special Weapon . | . . . . Impact Weapon . | . . . . Slashing Weapon . | . . . . Piercing Weapon . | . . . . Special Melee Weapon . | . . . . Unidentified Prototypes 1 | . 1 . . Parts Lost 4 | . 1 . 3 Power 1 | . . . 1 Propulsion 1 | . . . 1 Utility 2 | . 1 . 1 Weapon . | . . . . Highest Loss Streak 1 | . 1 . 1 To Critical Strikes . | . . . . Average Backups 11 | 3 10 15 14 Power 1 | . 1 2 2 Propulsion 3 | 2 3 3 2 Utility 3 | . 3 4 5 Weapon 3 | . 2 5 4 Tool/Special . | . . . . Unused Backups 20 | . 9 . 11 Power 4 | . 3 . 1 Propulsion 2 | . . . 2 Utility 10 | . 5 . 5 Weapon 4 | . 1 . 3 Tool/Special . | . . . . Average Slot Usage (%) 98 | . 99 100 97 Engine 13 | . 14 14 12 Treads 25 | . 23 28 27 Leg 2 | . 4 . . Device 1 | . 1 . . Storage 14 | . 14 14 14 Protection 12 | . 11 14 13 Energy Gun 12 | . 14 . 16 Ballistic Gun 15 | . 14 27 12 Peak Build Rating 16 | 6 12 14 16 Average Rating 10 | 4 8 13 14 On Entrance 7 | . 6 12 12 Naked Turns . | . . . . Heaviest Build 43 | 14 39 41 43 Greatest Support 40 | 20 40 40 40 Greatest Overweight (x) 1 | . 1 1 1 Average Overweight (x) . | . . . . Largest Inventory Capacity 15 | 8 15 15 15 Average Capacity 14 | 6 14 15 15 Most Carried 15 | 6 15 15 15 Average Carried 11 | 4 10 14 14 Final Capacity 15 | 8 15 15 15 Final Carried 15 | 6 15 15 14 Class Distribution -------------------- 100% | Mutant Dominant Class ---------------- Mutant | -10/Materials Mutant | -10/Mines Mutant | -10/Subcaves Resources | -11 -10 -10 -10 ----------- Run | Yrd Mat Min Sub Matter Collected 669 | 272 178 20 199 Remotely . | . . . . Salvage Created 600 | 87 266 . 247 Parts 35 | 6 15 . 14 Haulers Intercepted . | . . . . Recyclers Shooed . | . . . . Parts Field Recycled . | . . . . Retrieved Matter . | . . . . Parts Self-Destructed 11 | . . . 11 Prevented . | . . . . Kills | -11 -10 -10 -10 ------- Run | Yrd Mat Min Sub Combat Hostiles Destroyed 14 | . 7 . 7 Guns 14 | . 7 . 7 Classes Destroyed 6 | 2 3 . 1 Tunneler 1 | 1 . . . Recycler 1 | 1 . . . Watcher 2 | . 2 . . Swarmer 3 | . 3 . . Grunt 4 | . 4 . . Subdweller 7 | . . . 7 Best Kill Streak 3 | 1 3 . 2 Combat Bots Only 3 | . 3 . 2 Max Kills in Single Turn 1 | 1 1 . 1 Gunslinging . | . . . . Exploded . | . . . . Melee . | . . . . Uniques/NPCs Destroyed . | . . . . Combat | -11 -10 -10 -10 -------- Run | Yrd Mat Min Sub Hostile Shots Fired 105 | . 42 . 63 Missed 31 | . 11 . 20 Hits 74 | . 31 . 43 Projectile 74 | . 31 . 43 Critical Strikes 1 | . . . 1 Damage Taken 1275 | . 343 . 932 Core 258 | . 43 . 215 Absorbed by Shields . | . . . . Core Remaining (%) 100 | 100 . . . Volleys Fired 69 | 4 31 . 34 Largest 2 | 2 2 . 2 Hottest 120 | 70 70 . 120 Shots Fired 138 | 8 62 . 68 Gun 138 | 8 62 . 68 Cannon . | . . . . Launcher . | . . . . Special . | . . . . Kinetic 79 | 4 31 . 44 Thermal 59 | 4 31 . 24 Explosive . | . . . . Electromagnetic . | . . . . Robot Hit Streak 22 | 1 10 . 22 Robot Miss Streak 5 | 2 5 . 2 Penetration Max . | . . . . Secondary Targets 1 | . . . 1 Max Gunslinging Chain 1 | . . . 1 Shots Hit Robots 101 | 3 34 . 64 Core Hits 36 | 2 15 . 19 Critical Kills . | . . . . Critical Parts Destroyed . | . . . . Critical Strikes 4 | . 3 . 1 Burn 3 | . 3 . . Destroy 1 | . . . 1 Melee Attacks . | . . . . Impact . | . . . . Slashing . | . . . . Piercing . | . . . . Sneak Attacks . | . . . . Combat Hostiles . | . . . . Follow-up Attacks . | . . . . Damage Inflicted 1680 | 40 446 . 1194 Guns 1679 | 40 445 . 1194 Cannons . | . . . . Explosions . | . . . . Melee . | . . . . Ramming 1 | . 1 . . Kinetic 996 | 27 217 . 752 Thermal 683 | 13 228 . 442 Explosive . | . . . . Electromagnetic . | . . . . Impact . | . . . . Slashing . | . . . . Piercing . | . . . . Highest Corruption . | . . . . Average Corruption . | . . . . Corruption Purged . | . . . . Corruption Blocked . | . . . . Overload Shots . | . . . . Overflow Damage . | . . . . Projectiles . | . . . . Explosions . | . . . . Melee . | . . . . Knockbacks . | . . . . Impact . | . . . . Kinetic . | . . . . Secondary . | . . . . Self-Inflicted Damage . | . . . . Shots . | . . . . Rammed . | . . . . Targets Rammed 1 | . 1 . . Kicked 1 | . 1 . . Crushed . | . . . . Highest Temperature 199 | 18 122 . 199 Average Temperature 47 | 8 38 . 83 Received Heat Transfer 402 | . 153 . 249 Siege Activations . | . . . . Martial Activations . | . . . . Shielding Activations . | . . . . Robots Disrupted . | . . . . Combat Hostiles . | . . . . Robots Corrupted . | . . . . Combat Hostiles . | . . . . Parts Fried . | . . . . Impact Corruptions . | . . . . Robots Melted . | . . . . Combat Hostiles . | . . . . Parts Melted 3 | . 2 . 1 Heat Transferred 1475 | 37 888 . 550 Parts Sabotaged . | . . . . Parts Stolen . | . . . . Parts Stripped . | . . . . Power Chain Reactions . | . . . . Alert | -11 -10 -10 -10 ------- Run | Yrd Mat Min Sub Maximum Alert Level . | . . . . Low Security (%) 100 | 100 100 100 . Level 1 . | . . . . Level 2 . | . . . . Level 3 . | . . . . Level 4 . | . . . . Level 5 . | . . . . High Security . | . . . . Max Security . | . . . . Peak Influence 70 | 5 70 . . Initial . | . . . . Average 6 | 1 8 . . Influence Increases 214 | 10 204 . . Destroy 0b10 Robot/C 140 | . 140 . . Destroy 0b10 Robot/NC 20 | 10 10 . . Destroy Leader 34 | . 34 . . Successful Hack 18 | . 18 . . Destroy Structure 2 | . 2 . . Influence Decreases 214 | 10 204 . . Time Decay 204 | 10 194 . . Lost Part 10 | . 10 . . Squads Dispatched 1 | . 1 . . Investigation 1 | . 1 . . Extermination . | . . . . Reinforcement . | . . . . Assault . | . . . . Garrison . | . . . . Intercept . | . . . . Searches Triggered . | . . . . Construction Impeded . | . . . . Haulers Reinforced . | . . . . Active Scanning Responses . | . . . . Cargo Convoy Interrupts . | . . . . Stealth | -11 -10 -10 -10 --------- Run | Yrd Mat Min Sub Distress Signals . | . . . . Communications Jammed . | . . . . Distress Signals . | . . . . Times Spotted 22 | . 14 . 8 Peak Tracking Total 4 | . 4 . 3 Tactical Retreats . | . . . . Traps | -11 -10 -10 -10 ------- Run | Yrd Mat Min Sub Traps Triggered . | . . . . Indirectly . | . . . . Trap Hack Attempts . | . . . . Triggered . | . . . . Disarmed . | . . . . Reprogrammed . | . . . . Reused . | . . . . Traps Extracted . | . . . . Installed . | . . . . Triggered . | . . . . Machines | -11 -10 -10 -10 ---------- Run | Yrd Mat Min Sub Machines Disabled . | . . . . Max in Single Turn . | . . . . Machines Repaired . | . . . . Machines Dismantled . | . . . . Machines Sabotaged . | . . . . Overloaded Fab Kills . | . . . . Hacking | -11 -10 -10 -10 --------- Run | Yrd Mat Min Sub Machines Accessed 3 | . 3 . . Terminals 3 | . 3 . . Fabricators . | . . . . Repair Stations . | . . . . Recycling Units . | . . . . Scanalyzers . | . . . . Garrison Access . | . . . . Total Hacks 6 | . 6 . . Successful 2 | . 2 . . Failed 4 | . 4 . . Catastrophic . | . . . . Database Lockouts . | . . . . Manual . | . . . . Terminals 6 | . 6 . . Fabricators . | . . . . Repair Stations . | . . . . Recycling Units . | . . . . Scanalyzers . | . . . . Garrison Access . | . . . . Terminal Hacks 2 | . 2 . . Locate Traps 1 | . 1 . . Registered Prototypes 1 | . 1 . . Fabricator Hacks . | . . . . Repair Station Hacks . | . . . . Recycling Unit Hacks . | . . . . Scanalyzer . | . . . . Garrison Access Hacks . | . . . . Unauthorized Hacks . | . . . . Terminals . | . . . . Fabricators . | . . . . Repair Stations . | . . . . Recycling Units . | . . . . Scanalyzers . | . . . . Garrison Access . | . . . . Data Cores Recovered . | . . . . Used . | . . . . Hacking Detections 2 | . 2 . . Full Trace Events 1 | . 1 . . Feedback Events . | . . . . Feedback Blocked . | . . . . Robot Schematics Acquired . | . . . . Robots Built . | . . . . Authchips . | . . . . Time . | . . . . Total Robot Build Rating . | . . . . Part Schematics Acquired . | . . . . Parts Built . | . . . . Authchips . | . . . . Time . | . . . . Total Part Build Rating . | . . . . Parts Repaired . | . . . . Time . | . . . . Parts Recycled . | . . . . Recycled Matter . | . . . . Retrieved Matter . | . . . . Retrieved Components . | . . . . Parts Scanalyzed . | . . . . Part Schematics Acquired . | . . . . Parts Damaged . | . . . . Bothacking | -11 -10 -10 -10 ------------ Run | Yrd Mat Min Sub Used RIF Installer . | . . . . Robots Hacked . | . . . . Non-combat . | . . . . Combat . | . . . . Robot Hacks Applied . | . . . . Relay Couplers Released . | . . . . Fabnet Peak Effective % . | . . . . Robots Rewired . | . . . . Allies Hacked . | . . . . Hacks Repelled . | . . . . Allies | -11 -10 -10 -10 -------- Run | Yrd Mat Min Sub Total Allies . | . . . . Largest Group . | . . . . Highest-Rated Group . | . . . . Highest-Rated Ally . | . . . . Total Orders . | . . . . Ally Attacks . | . . . . Total Damage . | . . . . Kills . | . . . . Allies Corrupted . | . . . . Allies Melted . | . . . . Intel | -11 -10 -10 -10 ------- Run | Yrd Mat Min Sub Active Infowar (turns) . | . . . . Robot Analysis Total . | . . . . Derelict Logs Recovered 2 | . . 1 1 Drone Launches . | . . . . Drone Recoveries . | . . . . Exploration | -11 -10 -10 -10 ------------- Run | Yrd Mat Min Sub Turns Passed 2157 | 93 1294 290 480 Spaces Moved 1063 | 64 710 122 167 Core 19 | 19 . . . Treads 895 | . 606 122 167 Legs 149 | 45 104 . . Wheels . | . . . . Hover . | . . . . Flight . | . . . . Fastest Speed 50 | 50 120 160 160 Average Speed 169 | 99 159 206 212 Slowest Speed 250 | 120 190 240 250 Overloaded Moves . | . . . . Propulsion Burnouts . | . . . . Robots Hopped . | . . . . Potential Cave-ins . | . . . . Cave-ins Triggered . | . . . . Exploration Rate (%) 33 | 5 88 28 13 Regions Visited 3 Branch Regions 2 Pre-discovered Areas 1 | . . 1 . Known Exits Taken . | . . . . Unknown Exits Taken 3 | 1 1 1 . Scrap Searched 2 | . . 1 1 Spaces Dug . | . . . . Terrain Destroyed . | . . . . Melee . | . . . . Projectile . | . . . . AOE . | . . . . Terrain Rammed . | . . . . Walls Destroyed . | . . . . Machines Disabled . | . . . . Actions | -11 -10 -10 -10 --------- Run | Yrd Mat Min Sub Total 1288 | 85 815 160 228 Wait 72 | . 29 31 12 Move 1060 | 63 709 121 167 Hop . | . . . . Pick Up 42 | 12 23 2 5 Fast Attach 1 | . . 1 . Attach 12 | 6 4 . 2 Detach . | . . . . Swap 10 | . 5 2 3 Drop 21 | . 13 3 5 Fire 69 | 4 31 . 34 Melee . | . . . . Ram . | . . . . Kick 1 | . 1 . . Crush . | . . . . Escape Stasis . | . . . . Rewire . | . . . . Trap . | . . . . Miscellaneous . | . . . . Route ------- -11/Scrapyard -10/Materials (discovered 4 exits: [*Mat x3] / [*Min]) -10/Mines -10/Subcaves History --------- Turn | Location | Event 9 | -11/Scrapyard | Discovered new exit (range 14) 94 | -11/Scrapyard | Entered Materials 256 | -10/Materials | Discovered new exit (range 13) 303 | -10/Materials | Build established: Mutant 443 | -10/Materials | Discovered new exit (range 7) 570 | -10/Materials | Discovered new exit (range 16) 794 | -10/Materials | Derelicts attacked the area 847 | -10/Materials | Discovered new exit (range 12) 1388 | -10/Materials | Entered Mines 1492 | -10/Mines | Learned location of Zion (-6) 1647 | -10/Mines | Assembled infested the area 1671 | -10/Mines | Discovered new exit (range 5) 1678 | -10/Mines | Entered Subcaves 1680 | -10/Subcaves | Learned 2 Materials zone layouts 1808 | -10/Subcaves | A Subdweller sparked back to life 1808 | -10/Subcaves | A Subdweller sparked back to life 1808 | -10/Subcaves | A Subdweller sparked back to life 1865 | -10/Subcaves | Found Prototype Processor 2121 | -10/Subcaves | Core integrity fell below 50% 2145 | -10/Subcaves | Core integrity fell below 20% 2158 | -10/Subcaves | Destroyed by OT-JDX(R) with Subdweller Laser Last Messages --------------- 01824_ B0-QMT(R) destroyed. 01824_ Switching to secondary target: ZX-MI3(R). 01836_ ZX-MI3(R) affixes Scrap Shield Fragment to Scrap Shield. 01839_ XU-4AI(R) destroyed. 01845_ Med. Armor Plating destroyed. 01845_ Acquired 39 matter. 01847_ ZX-MI3(R) suffers critical hit (Destroy). 01854_ ZX-MI3(R) affixes Scrap Shield Fragment to Scrap Shield. 01860_ ZX-MI3(R) destroyed. 01865_ Acquired Prototype Processor. 01870_ Acquired Sub. Laser. 01878_ Acquired 26 matter. 01880_ Acquired 12 matter. 02017_ UP-2XN(R) destroyed. 02020_ Acquired 46 matter. 02023_ Dropped Shotgun. 02026_ Acquired Sub. Optics. 02136_ Spk. Treads destroyed. 02145_ Disposable Heat Sink melted. 02145_ LT-ATB(R) destroyed. Map ----- +----------------------------------------------------+ | ?????????????## ###*= ##??### ##????????? | | ?????????????# ###%# ##???# #?????????? | | ?????????????###?#####????# ###???????? | | ?????????????????##??#???## #?????? | | ?????????????????# #?# ?## #?????? | | ?????????????????# # ?# ##?????? | | ?????????????????# # ?# =* #### " ##??????? | | ??????????????#### ## & #???#"" #???????? | | ??????????????# ## ! #???#""" #???????? | | ???????????????# ?#= #???""" #???????? | | ???????????????# ## ##### " #???????? | | ???????????????# ### #?????###???? | | ????????????????# " " #???## #???? | | ????????????????# # #??## #???? | | ???????????????# " ### ##?## #???? | | ???????????? "#?## ###?## ##??? | | ????????????# #####"#???### #??## #??? | | ?????????????### ??????????#### #### ## #?? | | ???????????#### ???#####???# &[& ## #?? | | ??????????? ### #### [&! #### #?? | | ???????????? ##?##?? | | ???????????????? ###### | | ?????????????????? # """# | | ??????????????????????#### """"# | | ????????????????????????##%R ######""### | | ???????????????????????##@! ### #####?###?? | | ??????????????????????## ###?# #?????? | | ???????????????????##?# ##???# "##?????? | | ??????????????????## ## #???## "#??????? | | ??????????????????# #???# "#??????? | | ??????????????????### ## #??# #?????? | | ????????????????????# ## #??# ## #????? | | ????????????????????## ## #??# #?## ##????? | | ?????????????????????## #####??##????####?????? | | ??????????????????????## ##???????????????????? | | ???????????????????????## #####???????????????? | | ????????????????????????# #???????????????? | | ????????????????????????## #???????????????? | | ?????????????????????????#########???????????????? | | ?????????????????????????????????????????????????? | | ?????????????????????????????????????????????????? | | ?????????????????????????????????????????????????? | | ?????????????????????????????????????????????????? | | ?????????????????????????????????????????????????? | | ?????????????????????????????????????????????????? | | ?????????????????????????????????????????????????? | | ?????????????????????????????????????????????????? | | ?????????????????????????????????????????????????? | | ?????????????????????????????????????????????????? | | ?????????????????????????????????????????????????? | +----------------------------------------------------+ Best States ------------- Heat Dissipation 35 Energy Generation 14 Energy Capacity 280 Matter Stores 300 Matter Capacity 300 Sight Range 16 Terrain Scan Density 10 Armor Coverage 225 Evasion (%) 55 Recoil Reduction 2 Item Schematics ----------------- None Robot Schematics ------------------ None Fabricated ------------ Nothing Repaired ---------- Nothing Alien Tech Used ----------------- None Achievements -------------- None Challenges ------------ None Game ------ Seed CoolantXenonFemtoactuators Manual? 0 Play Time 00:14:00 Cumulative 68.2 hours Start 2025.05.26 @ 12:35:21 End 2025.05.26 @ 12:48:55 Sessions 1 Manual Loads 0 Difficulty Rogue Special Mode None Game No. 128 Rogue 128 Adventurer 0 Explorer 0 Win Type - Total 1 Types 1/0/0/0/0/0/0/0/0/0 Lore% 55 Gallery% 44 Achievement% 41 Wizard Run 0 Options --------- Layout 0 ASCII 0 Keyboard 0 Movement Mouse Keybinds 0 Fullscreen 1 Font 16/SmallcapsGlow Map View 75x55 Zoom Use 0% Tactical HUD 1 Map Filters NONE Filters NONE Steam 1 RUN: 2b65ca53-ecb7-426e-8216-e858b3d74847